Workbook

Sheet Tech (hidden)
A1: LT
A2: EN

Sheet Content
B2: LT | C2: ◄ | D2: Switch to English | F2: ◄ | G2: Rodyti lietuviškai
C4: FISKALINĖS DRAUSMĖS TAISYKLIŲ LAIKYMOSI SKAIČIUOKLĖ | F4: SPREADSHEET OF THE FULFILMENT OF FISCAL DISCIPLINE RULES
C6: 2020-05-15 BPE-3 | G6: 2020-05-15 BPE-3
C8: APRAŠYMAS | F8: DESCRIPTION
D10: Fiskalinės sutarties įgyvendinimo konstituciniame įstatyme Nr. XII-1289 (toliau − KĮ) nustatytų fiskalinės drausmės taisyklių skaičiuoklė skirta skaidriai parodyti fiskalinės drausmės taisykles, pagal kurias priimami sprendimai. 1 dalis pateikia skaičiavimams reikalingų duomenų įvestis ir nurodo šių duomenų šaltinius. 2 dalyje nagrinėjamos trys taisyklių grupės: perteklinio valdžios sektoriaus (toliau − VS) taisyklė; VS išlaidų augimą ribojimo taisyklė ir VS priskiriamų biudžetų taisyklės. | G10: Constitutional Law on the Implementation of the Fiscal Treaty Nr. XII-1289 (hereinafter − CL) defines fiscal discipline rules. The aim of this spreadsheet is to show the fiscal discipline rules, which are used for making decisions in a transparent way. Part 1 provides required input data with their appropriate sources. In part 2 three groups of the fiscal rules are validated: general government (hereinafter − GG) surplus rule; GG sector expenditure growth limiting rule and rules for the budgets attributable to GG.
C12: SUVESTINĖ | F12: SUMMARY
D14: 1 lentelė. Fiskalinės drausmės taisyklių laikymosi suvestinė | G14: Table 1. Summary of the fulfilment of the fiscal discipline rules
C16: 1. DUOMENYS | F16: 1 . DATA
D18: 2 lentelė. Makroekonominiai ir ciklo rodikliai | G18: Table 2. Macroeconomic and cyclical indicators
D19: 3 lentelė. VS fiskaliniai rodikliai | G19: Table 3. GG fiscal indicators
D20: 4 lentelė. Savivaldybių biudžetai | G20: Table 4. Budget attributable to local government
C22: 2. FISKALINĖS TAISYKLĖS | F22: 2. FISCAL RULES
D24: 5 lentelė. Perteklinio VS taisyklė | G24: Table 5. Surplus GG rule
D25: 6 lentelė. VS išlaidų augimo ribojimo taisyklė | G25: Table 6. GG expenditure growth limiting rule
D26: 7 lentelė. VS priskiriamų biudžetų taisyklė | G26: Table 7. Rules for the budgets attributable to GG sector
C28: NUORODOS | F28: REFERENCES
C30: KĮ | D30: Lietuvos Respublikos fiskalinės sutarties įgyvendinimo konstitucinis įstatymas | F30: CL | G30: Republic of Lithuania Constitutional Law on the Implementation of the Fiscal Treaty
C31: FDĮ | D31: Lietuvos Respublikos fiskalinės drausmės įstatymas | F31: FDL | G31: Republic of Lithuania Fiscal Discipline Law

Sheet 1. Summary
B1: ↖ atgal į turinį | E1: ↖ back to content
A2: =Kalba -> LT
B3: 1 lentelė. Fiskalinės drausmės taisyklių laikymosi suvestinė 2018 m. | E3: Table 1. Summary of the fulfilment of the fiscal discipline rules in year 2018
B4: Taisyklė | E4: Rule
B5: Institucija, kurios projekcijų pagrindu atliekama analizė | C5: FM | D5: IFI | E5: Institution, projections of which are used for the analysis | F5: MoF | G5: IFI
B6: Perteklinio VS taisyklė | E6: Surplus GG sector rule
B7: Ar patenkinta bent viena perteklinio VS taisyklės sąlygų? | C7: ='5. SurplusGG'!E14 -> Ne | D7: ='5. SurplusGG'!F14 -> Ne | E7: Is at least one condition of the surplus GG rule satisfied? | F7: ='5. SurplusGG'!J14 -> No | G7: ='5. SurplusGG'!K14 -> No
C8: ='5. SurplusGG'!E15 -> Netenkinama nei viena iš sąlygų | D8: ='5. SurplusGG'!F15 -> Netenkinama nei viena iš sąlygų | F8: ='5. SurplusGG'!J15 -> None of the conditions is valid | G8: ='5. SurplusGG'!K15 -> None of the conditions is valid
B9: Ar t metai yra išskirtinių aplinkybių metai? | C9: Ne | E9: Is year t a year of exceptional circumstances? | F9: =IF(C9="NE","No","Yes") -> No
B10: VS išlaidų augimo ribojimo taisyklė | E10: GG expenditure growth limiting rule
B11: Ar susidaro bent viena aplinkybė, leidžianti netaikyti VS išlaidų augimo ribojimo taisyklės? | C11: ='6. GGexpenditure'!F19 -> Taip | D11: ='6. GGexpenditure'!G19 -> Taip | E11: Is at least one escape clause, which allows switching off GG expenditure growth limiting rule, valid? | F11: ='6. GGexpenditure'!L19 -> Yes | G11: ='6. GGexpenditure'!M19 -> Yes
C12: ='6. GGexpenditure'!F20 -> Susidaro aplinkybės | D12: ='6. GGexpenditure'!G20 -> Susidaro aplinkybės | F12: ='6. GGexpenditure'!L20 -> Escape clauses emerge | G12: ='6. GGexpenditure'!M20 -> Escape clauses emerge
B13: Ar taikoma VS išlaidų augimą ribojimo taisyklė? | C13: =IF(C11="taip","Netaikoma,","Taikoma") -> Netaikoma, | D13: =IF(D11="taip","Netaikoma,","Taikoma") -> Netaikoma, | E13: Is GG expenditure growth limiting rule applied? | F13: =IF(F11="yes","Not applied","Applied") -> Not applied | G13: =IF(G11="yes","Not applied,","Applied") -> Not applied,
C14: ='6. GGexpenditure'!F26 -> nes susidarė viena iš KĮ numatytų netaikymo aplinkybių | D14: ='6. GGexpenditure'!G26 -> nes susidarė viena iš KĮ numatytų netaikymo aplinkybių | F14: ='6. GGexpenditure'!L26 -> since one of CL escape clauses emerged | G14: ='6. GGexpenditure'!M26 -> since one of CL escape clauses emerged
B15: Ar galioja VS išlaidų augimo ribojimo taisyklė? | C15: =IF(C11="taip","Netikrinama",'6. GGexpenditure'!F25) -> Netikrinama | D15: =IF(D11="taip","Netikrinama",'6. GGexpenditure'!G25) -> Netikrinama | E15: Is GG expenditure growth limiting rule valid? | F15: =IF(F11="yes","Not verified",'6. GGexpenditure'!L25) -> Not verified | G15: =IF(G11="yes","Not verified",'6. GGexpenditure'!M25) -> Not verified
B16: VS priskiriamų biudžetų taisyklės | E16: Rules for the budgets attributable to GG sector
B17: Savivaldybių (j), kurių asignavimai didesni nei 0,3 proc. nominalaus BVP, struktūrinio biudžeto (SB) taisyklė | C17: ='7. GGbudgets'!E7 -> Savivaldybių biudžetų atitiktis fiskalinės drausmės taisyklėms bus vertinama 2020 m. birželį | D17: ='7. GGbudgets'!F7 -> Savivaldybių biudžetų atitiktis fiskalinės drausmės taisyklėms bus vertinama 2020 m. birželį | E17: Structural budget rule for local governments (j) with appropriations exceeding 0,3 % of nominal GDP | F17: ='7. GGbudgets'!J7 -> Will be assessed in June 2020 | G17: ='7. GGbudgets'!K7 -> Will be assessed in June 2020
B18: ='7. GGbudgets'!C12 -> Taisyklė PSDF struktūriniam biudžetui | C18: ='7. GGbudgets'!E12 -> Netenkinama | D18: ='7. GGbudgets'!F12 -> Netenkinama
B19: ='7. GGbudgets'!C18 -> Taisyklė VSDF struktūriniam biudžetui | C19: ='7. GGbudgets'!E18 -> Tenkinama | D19: ='7. GGbudgets'!F18 -> Tenkinama | E19: ='7. GGbudgets'!H18 -> Rule for SSIF structural budget | F19: ='7. GGbudgets'!J18 -> Invalid | G19: ='7. GGbudgets'!K18 -> Invalid
B20: ='7. GGbudgets'!C22 -> Taisyklė savivaldybių (j) asignavimams, kurie neviršija 0,3 proc. BVP | C20: ='7. GGbudgets'!E20:E21 -> Savivaldybių biudžetų atitiktis fiskalinės drausmės taisyklėms bus vertinama 2020 m. birželį | D20: ='7. GGbudgets'!F20:F21 -> Savivaldybių biudžetų atitiktis fiskalinės drausmės taisyklėms bus vertinama 2020 m. birželį | E20: ='7. GGbudgets'!H22 -> Rule for local governments (j) appropriations of which does not exceed 0.3 % of GDP | F20: ='7. GGbudgets'!J20:J21 -> Will be assessed in June 2020 | G20: ='7. GGbudgets'!K20:K21 -> Will be assessed in June 2020
B22: Šaltiniai: | E22: Sources:
B23: Finansų ministerija | C23: FM | E23: Ministry of Finance | F23: MoF
B24: Fiskalinė institucija | C24: IFI | E24: Independent Fiscal Institution | F24: IFI

Sheet 2. Macro
B1: ↖ atgal į turinį | D1: ↖ back to content
A2: =Kalba -> LT
B3: 2 lentelė. Makroekonominiai ir ciklo rodikliai | D3: Table 2. Macroeconomic and cyclical indicators
B4: Rodiklis | C4: Žymėjimas | Formulė | D4: Indicator | E4: Notation | Formula | F4: =IF(A2="LT","Duomenys atnaujinti","Data updated on") -> Duomenys atnaujinti | G4: =IF(A2="LT","Faktas","Actuals") -> Faktas
G5: 2012 | H5: =G5+1 -> 2013 | I5: 2014 | J5: 2015 | K5: 2016 | L5: 2017 | M5: =L5+1 -> 2018 | N5: =M5+1 -> 2019 | O5: 2011 | P5: 2010 | Q5: 2009 | R5: 2008
B6: Laikas | C6: T | D6: Time | E6: T | G6: t−7 | H6: t−6 | I6: t−5 | J6: t−4 | K6: t−3 | L6: t−2 | M6: t−1 | N6: t | O6: t-8 | P6: t-9 | Q6: t-10 | R6: t-11
B7: Nominalus BVP, mln. EUR | C7: YN(T) | D7: Nominal GDP, million EUR | E7: YN(T) | F7: 2020-04-17 | G7: 33331.6 | H7: 34985 | I7: 36544.8 | J7: 37321.8 | K7: 38893.3 | L7: 42269.3 | M7: 45264.4 | N7: 48339.2
F8: 2020-04-17 | G8: 33331.6 | H8: 34985 | I8: 36544.8 | J8: 37321.8 | K8: 38893.3 | L8: 42269.3 | M8: 45264.4 | N8: 48339.2
B9: Nominalus BVP, metinis augimas proc. | C9: ΔYN(T)=(YN(T)/YN(T–1)–1)∙100 | D9: Nominal GDP growth, annual % change | E9: ΔYN(T)=(YN(T)/YN(T–1)–1)∙100 | F9: =$F$7 -> 2020-04-17 | H9: =(H7/G7-1)*100 -> 4.960457944 | I9: 4.458482207 | J9: 2.126157483 | K9: 4.210675798 | L9: 8.680158279 | M9: =(M7/L7-1)*100 -> 7.085757275 | N9: =(N7/M7-1)*100 -> 6.792976379
F10: =$F$8 -> 2020-04-17 | H10: 4.960457944 | I10: 4.458482207 | J10: 2.126157483 | K10: 4.210675798 | L10: 8.680158279 | M10: =(M8/L8-1)*100 -> 7.085757275 | N10: =(N8/M8-1)*100 -> 6.792976379
B11: Realus BVP, mln. EUR | C11: YR(T) | D11: Real GDP, million EUR | E11: YR(T) | F11: =$F$7 -> 2020-04-17 | G11: 34124.2 | H11: 35338.5 | I11: 36578.1 | J11: 37321.9 | K11: 38275.8 | L11: 39901.6 | M11: 41355.8 | N11: 42974.4
F12: =$F$8 -> 2020-04-17 | G12: 34124.2 | H12: 35338.5 | I12: 36578.1 | J12: 37321.9 | K12: 38275.8 | L12: 39901.6 | M12: 41355.8 | N12: 42974.4
B13: Realus BVP, metinis augimas proc. | C13: ΔYR(T)=(YR(T)/YR(T–1)–1)∙100 | D13: Real GDP growth, annual % change | E13: ΔYR(T)=(YR(T)/YR(T–1)–1)∙100 | F13: =$F$7 -> 2020-04-17 | H13: =(H11/G11-1)*100 -> 3.5584717 | I13: 3.507788955 | J13: 2.033457178 | K13: 2.555872022 | L13: 4.247592474 | M13: =(M11/L11-1)*100 -> 3.644465385 | N13: =(N11-M11)/M11*100 -> 3.91384038
F14: =$F$8 -> 2020-04-17 | H14: 3.5584717 | I14: 3.507788955 | J14: 2.033457178 | K14: 2.555872022 | L14: 4.247592474 | M14: =(M12/L12-1)*100 -> 3.644465385 | N14: =(N12-M12)/M12*100 -> 3.91384038
B15: Potencialus BVP, mln. EUR | C15: Y*(T) | D15: Potential GDP, million EUR | E15: Y*(T) | F15: 2020-03-27 | G15: 35153.76894 | H15: 35815.34894 | I15: 36557.83243 | J15: 37377.23846 | K15: 38256.46497 | L15: 39230.77952 | M15: 40333.03414 | N15: 41522.53464 | O15: 34485.88704 | P15: 33779.76689 | Q15: 33222.5861 | R15: 32378.25389
F16: 2020-03-20 | G16: 34983.77854 | H16: 35651.16007 | I16: 36388.69012 | J16: 37136.71158 | K16: 37824.94129 | L16: 38684.94192 | M16: 39823.67306 | N16: 41332.67116 | O16: 34528.54656 | P16: 34184.24594 | Q16: 34168.81953 | R16: 33874.67784
B17: Potencialus BVP, metinis augimas proc. | C17: ΔY*(T)=(Y*(T)/Y*(T–1)–1)∙100 | D17: Potential GDP growth, annual % change | E17: ΔY*(T)=(Y*(T)/Y*(T–1)–1)∙100 | F17: =F15 -> 2020-03-27 | G17: =(G15/O15-1)*100 -> 1.93668179 | H17: =(H15/G15-1)*100 -> 1.881960371 | I17: =(I15/H15-1)*100 -> 2.07308742 | J17: 2.241396629 | K17: 2.352304637 | L17: 2.54679713 | M17: 2.809667896 | N17: =(N15/M15-1)*100 -> 2.949196665
F18: =$F$16 -> 2020-03-20 | G18: =(G16/O16-1)*100 -> 1.318422075 | H18: =(H16/G16-1)*100 -> 1.907688524 | I18: =(I16/H16-1)*100 -> 2.068740666 | J18: 2.055642731 | K18: =(K16/J16-1)*100 -> 1.853232773 | L18: =(L16/K16-1)*100 -> 2.273633731 | M18: =(M16/L16-1)*100 -> 2.943603093 | N18: =(N16/M16-1)*100 -> 3.789198686
B19: Atotrūkis nuo potencialo, proc. pot. BVP | C19: AP(T)=(YR(T)/Y*(T)–1)∙100 | D19: Output gap (OG), % pot. GDP | E19: OG(T)=(YR(T)/Y*(T–1)–1)∙100 | F19: =F15 -> 2020-03-27 | G19: =(G$11/G15-1)*100 -> -2.928758335 | H19: =(H11/H15-1)*100 -> -1.331409444 | I19: 0.05543974354 | J19: -0.1480538896 | K19: 0.05054055923 | L19: 1.709934107 | M19: =(M11/M15-1)*100 -> 2.53580194 | N19: 3.496572107
F20: =$F$16 -> 2020-03-20 | G20: =(G$12/G16-1)*100 -> -2.45707748 | H20: =(H$12/H16-1)*100 -> -0.8769983146 | I20: 0.5205185458 | J20: 0.4986667081 | K20: 1.19196142 | L20: 3.145043066 | M20: 3.847276804 | N20: =(N$12/N16-1)*100 -> 3.971988245
B21: Ciklinė VS biudžeto dedamoji, proc. pot. BVP | C21: CB(T) = ε∙AP(T) | D21: Cyclical GG budgetary component, % pot. GDP | E21: CB(T) = ε∙OG(T) | F21: =$F$15 -> 2020-03-27 | G21: =G19*G38 -> -1.168574576 | H21: =H19*H38 -> -0.5312323682 | I21: 0.02212045767 | J21: -0.05907350194 | K21: 0.02016568313 | L21: 0.6822637088 | M21: =M19*M38 -> 1.011784974 | N21: =N19*N38 -> 1.395132271
F22: =$F$16 -> 2020-03-20 | G22: =G20*G38 -> -0.9803739147 | H22: =H20*H38 -> -0.3499223275 | I22: 0.2076868998 | J22: 0.1989680165 | K22: 0.4755926065 | L22: 1.254872183 | M22: =M20*M38 -> 1.535063445 | N22: =N20*N38 -> 1.58482331
B23: Ciklinė VSDF biudžeto dedamoji, proc. pot. BVP | C23: CBVSDF(T) = εVSDF∙AP(T) | D23: Cyclical SSIF budgetary component, % pot. GDP | E23: CBSSIF(T) = εSSIF∙OG(T) | F23: =$F$15 -> 2020-03-27 | G23: =G19*G39 -> -0.306055246 | H23: =H19*H39 -> -0.1391322869 | I23: =I19*I39 -> 0.0057934532 | J23: -0.01547163146 | K23: 0.00528148844 | L23: 0.1786881142 | M23: 0.2649913027 | N23: 0.3531537829
F24: =$F$16 -> 2020-03-20 | G24: =G20*G39 -> -0.2567645967 | H24: =H20*H39 -> -0.09164632387 | I24: =I20*I39 -> 0.05439418804 | J24: 0.05211067099 | K24: =K20*K39 -> 0.1245599684 | L24: 0.3286570004 | M24: 0.402040426 | N24: 0.4011708128
B25: Ciklinė PSDF biudžeto dedamoji, proc. pot. BVP | C25: CBPSDF(T) = εPSDF∙AP(T) | D25: Cyclical NHIF budgetary component, % pot. GDP | E25: CBNHIF(T) = εNHIF∙OG(T) | F25: =$F$15 -> 2020-03-27 | M25: =M19*M40 -> 0.1141110873 | N25: =N19*N40 -> 0.1573457448
F26: =$F$16 -> 2020-03-20 | M26: =M20*M40 -> 0.1731274562 | N26: =N20*N40 -> 0.178739471
B27: BVP defliatorius, 2010 = 100 | C27: PY(T) = YN(T)/YR(T) | D27: GDP deflator, 2010 = 100 | E27: PY(T) = YN(T)/YR(T) | F27: =$F$7 -> 2020-04-17 | G27: =G7/G11*100 -> 97.67730819 | H27: 98.99967458 | I27: 99.90896192 | J27: 99.99973206 | K27: 101.6132909 | L27: 105.9338473 | M27: =M7/M11*100 -> 109.4511532 | N27: 112.4837112
F28: =$F$8 -> 2020-04-17 | G28: =G8/G12*100 -> 97.67730819 | H28: =H8/H12*100 -> 98.99967458 | I28: 99.90896192 | J28: 99.99973206 | K28: 101.6132909 | L28: 105.9338473 | M28: 109.4511532 | N28: 112.4837112
B29: BVP defliatorius, metinis augimas proc. | C29: ΔPY(T)=(PY(T)/PY(T–1)–1)∙100 | D29: GDP deflator, annual % change | E29: ΔPY(T)=(PY(T)/PY(T)–1)∙100 | F29: =$F$7 -> 2020-04-17 | H29: =(H27/G27-1)*100 -> 1.353811253 | I29: =(I27/H27-1)*100 -> 0.9184750837 | J29: =(J27/I27-1)*100 -> 0.09085285166 | K29: 1.613563167 | L29: 4.251959878 | M29: =(M27/L27-1)*100 -> 3.320285244 | N29: 2.770695403
F30: =$F$8 -> 2020-04-17 | H30: =(H28/G28-1)*100 -> 1.353811253 | I30: =(I28/H28-1)*100 -> 0.9184750837 | J30: 0.09085285166 | K30: 1.613563167 | L30: 4.251959878 | M30: 3.320285244 | N30: =(N28/M28-1)*100 -> 2.770695403
B31: Vidutinė metinė SVKI infliacija | C31: ΔSVKI(T) | D31: Average annual HICP inflation | E31: ΔHICP(T) | F31: =$F$8 -> 2020-04-17 | G31: 3.2 | H31: 1.2 | I31: 0.2 | J31: -0.7 | K31: 0.7 | L31: 3.7 | M31: 2.5 | N31: 2.2
B32: ES nominalus BVP, mlrd. EUR | C32: YNES(T) | D32: EU nominal GDP, billion EUR | E32: YNEU(T) | F32: 2020-04-17 | G32: 11390.0222 | H32: 11516.6644 | I32: 11781.665 | J32: 12213.0109 | K32: 12550.4596 | L32: 13046.7757 | M32: 13484.8218 | N32: 13918.1444
B33: ES nominalus BVP, metinis augimas proc. | C33: ΔYNES(T)=(YNES(T)/YNES(T–1)–1)∙100 | D33: EU nominal GDP growth, annual % change | E33: ΔYNEU(T)=(YNEU(T)/YNEU(T–1)–1)∙100 | F33: =$F$32 -> 2020-04-17 | H33: =(H32/G32-1)*100 -> 1.11186965 | I33: =(I32/H32-1)*100 -> 2.301018687 | J33: =(J32/I32-1)*100 -> 3.661162493 | K33: 2.763026274 | L33: 3.954565138 | M33: =(M32/L32-1)*100 -> 3.357504644 | N33: =(N32/M32-1)*100 -> 3.21340991
B34: VS biudžeto balansas mln. EUR | C34: BL(T) | D34: Balance of GG budget, million EUR | E34: BL(T) | F34: 2020-04-17 | G34: -1049.235 | H34: -913.027 | I34: -226.193 | J34: -100.74 | K34: 90.33 | L34: 192.04 | M34: 271.8 | N34: 129.3
F35: 2020-04-17 | G35: -1049.235 | H35: -913.027 | I35: -226.193 | J35: -100.74 | K35: 90.33 | L35: 192.04 | M35: 271.8 | N35: 129.3
B36: VS biudžeto balansas proc. BVP | C36: B(T)=BL(T)/YN(T) | D36: Balance of GG budget, % of GDP | E36: B(T)=BL(T)/YN(T) | F36: =+F34 -> 2020-04-17 | G36: =G34/G7*100 -> -3.147868689 | H36: -2.609767043 | I36: -0.6189471553 | J36: -0.2699226725 | K36: 0.232250799 | L36: 0.4543250066 | M36: =M34/M7*100 -> 0.600471894 | N36: 0.2674847743
F37: =F8 -> 2020-04-17 | G37: =G35/G8*100 -> -3.147868689 | H37: -2.609767043 | I37: -0.6189471553 | J37: -0.2699226725 | K37: 0.232250799 | L37: =L35/L8*100 -> 0.4543250066 | M37: 0.600471894 | N37: =N35/N8*100 -> 0.2674847743
B38: VS biudžeto dalinis elastingumas pot. BVP | C38: ε | D38: Semi-elasticity of the GG budget to the OG | E38: ε | F38: 2020-03-20 | G38: 0.399 | H38: =G38 -> 0.399 | I38: =G38 -> 0.399 | J38: =G38 -> 0.399 | K38: =G38 -> 0.399 | L38: =G38 -> 0.399 | M38: =G38 -> 0.399 | N38: =G38 -> 0.399
B39: VSDF biudžeto semi-elastingumas pot. BVP | C39: εVSDF | D39: Semi-elasticity of the SSIF budget to the OG | E39: εSSIF | F39: =F26 -> 2020-03-20 | G39: =H39 -> 0.1045 | H39: =I39 -> 0.1045 | I39: 0.1045 | J39: =K39 -> 0.1045 | K39: 0.1045 | L39: =M39 -> 0.1045 | M39: 0.1045 | N39: 0.101
B40: PSDF biudžeto semi-elastingumas pot. BVP | C40: εPSDF | D40: Semi-elasticity of the NHIF budget to the OG | E40: εNHIF | F40: =F26 -> 2020-03-20 | M40: 0.045 | N40: 0.045
C42: Šaltiniai: | E42: Sources:
C43: Europos Komisija, Eurostatas, Lietuvos statistikos departamentas | E43: European Commission, Eurostat, Statistics Lithuania
B44: 2019 pavasario ERS duomenys | C44: Finansų ministerija (FM) | D44: 2019 spring EDS data | E44: Ministry of Finance (MoF)
C45: Fiskalinės institucijos skaičiavimai | E45: Independent fiscal institution calculations
C46: ERS – ekonominės raidos scenarijus | E46: EDS – economic development scenario
C47: Dėmesio: langeliai su formulėmis, atnaujinami tik spalvoti langeliai | E47: Warning: cells with formulas, data inputs are marked with coloured cells
C48: Apvalinimo tikslumas | E48: Rounding threshold | F48: 0.05

Sheet 3. GGbudget
B1: ↖ atgal į turinį | D1: ↖ back to content
A2: =Kalba -> LT
B3: 3 lentelė. VS fiskaliniai rodikliai | D3: Table 3. GG fiscal indicators
B4: Rodiklis | C4: Žymėjimas | Formulė | D4: Indicator | E4: Notation | Formula | F4: =IF($A$2="LT","proc. BVP","% of GDP") -> proc. BVP | G4: =IF($A$2="LT","mln. EUR", "mil. EUR") -> mln. EUR | H4: =IF($A$2="LT","proc. BVP","% of GDP") -> proc. BVP | I4: =IF($A$2="LT","mln. EUR", "mil. EUR") -> mln. EUR | J4: =IF($A$2="LT","proc. BVP","% of GDP") -> proc. BVP | K4: =IF($A$2="LT","mln. EUR", "mil. EUR") -> mln. EUR | L4: =IF($A$2="LT","proc. BVP","% of GDP") -> proc. BVP | M4: =IF($A$2="LT","mln. EUR", "mil. EUR") -> mln. EUR
F5: ='2. Macro'!M5 -> 2018 | G5: =F5 -> 2018 | H5: ='2. Macro'!N5 -> 2019 | I5: =H5 -> 2019 | J5: =G5 -> 2018 | K5: =J5 -> 2018 | L5: =I5 -> 2019 | M5: =L5 -> 2019
B6: Nominalus BVP | D6: Nominal GDP, million EUR | G6: ='2. Macro'!M8 -> 45264.4 | I6: ='2. Macro'!N8 -> 48339.2 | K6: ='2. Macro'!M7 -> 45264.4 | M6: ='2. Macro'!N7 -> 48339.2
B7: Grynasis skolinimas (+) / grynasis skolinimasis (-), iš jo | C7: B=VP–VI | D7: Net lending (+) /net borrowing (-), of which | E7: B=TR–TE | F7: =G7/G6*100 -> 0.600471894 | G7: =G10-G11 -> 271.8 | H7: =H10-H11 -> 0.2674847743 | I7: =I10-I11 -> 129.3 | J7: =K7/K6*100 -> 0.600471894 | K7: =K10-K11 -> 271.8 | L7: 0.2674847743 | M7: 129.3
B8: Valstybinis socialinio draudimo fondas | C8: VSDF | D8: State Social Insurance Fund | E8: SSIF | F8: =G8/G6*100 -> 8.500720213 | G8: 3847.8 | H8: =I8/I6*100 -> 0.5738613796 | I8: 277.4 | J8: =F8 -> 8.500720213 | K8: =G8 -> 3847.8 | L8: =H8 -> 0.5738613796 | M8: =I8 -> 277.4
B9: Privalomojo sveikatos draudimo fondas | C9: PSDF | D9: National Health Insurance Fund | E9: NHIF | F9: =G9/G6*100 -> 0.1900730339 | G9: 86.03541837 | H9: =I9/I6*100 -> 0.06380369125 | I9: 30.84219392 | J9: =F9 -> 0.1900730339 | K9: =G9 -> 86.03541837 | L9: =M9/M6*100 -> 0.06380369125 | M9: =I9 -> 30.84219392
B10: Visos pajamos | C10: VP | D10: Total revenues | E10: TR | F10: =G10/G6*100 -> 34.64776513 | G10: 15683.103 | H10: =I10/I6*100 -> 35.21718398 | I10: 17023.705 | J10: =K10/K6*100 -> 34.64776513 | K10: =G10 -> 15683.103 | L10: =M10/M6*100 -> 35.21718398 | M10: =I10 -> 17023.705
B11: Visos išlaidos, iš jų | C11: VI | D11: Total expenditures, of which | E11: TE | F11: =G11/G6*100 -> 34.04729324 | G11: 15411.303 | H11: =I11/I6*100 -> 34.94969921 | I11: 16894.405 | J11: =K11/K6*100 -> 34.04729324 | K11: =G11 -> 15411.303 | L11: =M11/M6*100 -> 34.94969921 | M11: =I11 -> 16894.405
B12: Centrinė valdžia, be pervedimų SAF | C12: CV | D12: Central government, net of transfers to SSF | E12: CG | F12: =G12/G6*100 -> 17.96983616 | G12: 8133.938518 | H12: =I12/I6*100 -> 18.3994309 | I12: 8894.1377 | J12: =K12/K6*100 -> 17.96983616 | K12: =G12 -> 8133.938518 | L12: =M12/M6*100 -> 18.3994309 | M12: =I12 -> 8894.1377
B13: Socialinės apsaugos fondai, be pervedimų CV | C13: SAF | D13: Social Security Funds, net of transfers to CG | E13: SSF | F13: =G13/G6*100 -> 12.88267756 | G13: 5831.2667 | H13: =I13/I6*100 -> 12.72776628 | I13: 6152.5004 | J13: =K13/K6*100 -> 12.88267756 | K13: =G13 -> 5831.2667 | L13: =M13/M6*100 -> 12.72776628 | M13: =I13 -> 6152.5004
B14: Konsoliduotos išlaidos VS posektorių, kurių išlaidos > 3 proc. BVP | C14: AV3=CV+SAF | D14: Consolidated expenditure of GG subsectors with exp. > 3 % of GDP | E14: AG3=CG+SSF | F14: =F13+F12 -> 30.85251371 | G14: =G13+G12 -> 13965.20522 | H14: =I14/I6*100 -> 31.12719718 | I14: =I12+I13 -> 15046.6381 | J14: =K14/K6*100 -> 30.85251371 | K14: =K12+K13 -> 13965.20522 | L14: =M14/M6*100 -> 31.12719718 | M14: =M12+M13 -> 15046.6381
B15: Vienkartinės ir kitos laikinosios priemonės | C15: 1klp | D15: One-off and temporary measures | E15: 1off | F15: =G15/G6*100 -> -0.0154646919 | G15: -7 | H15: =I15/I6*100 -> 0.0771630478 | I15: 37.3 | J15: =K15/K6*100 -> -0.0154646919 | K15: =G15 -> -7 | L15: =M15/M6*100 -> 0.0771630478 | M15: =I15 -> 37.3
B16: Vienkartinės ir kitos laikinosios priemonės, VSDF | C16: 1klpVSDF | D16: One-off and temporary measures, SSIF | E16: 1offSSIF | F16: =G16/G6*100 -> 0 | G16: 0 | H16: =I16/$I$6*100 -> 0 | I16: 0 | J16: =F16 -> 0 | K16: =G16 -> 0 | L16: =M16/$M$6*100 -> 0 | M16: =I16 -> 0
B17: Vienkartinės ir kitos laikinosios priemonės, PSDF | C17: 1klpPSDF | D17: One-off and temporary measures, NHIF | E17: 1offNHIF | F17: =G17/G7*100 -> 0 | G17: 0 | H17: =I17/$I$6*100 -> 0 | I17: 0 | J17: =F17 -> 0 | K17: =G17 -> 0 | L17: =M17/$M$6*100 -> 0 | M17: =I17 -> 0
B18: Lankstumo galimybė dėl vykdomų struktūrinių reformų | C18: SR | D18: Structural reform flexibility clause | E18: SR | F18: 0.5 | H18: 0.5 | J18: 0.5 | L18: 0.5
B19: Struktūrinis VS balansas, neįtraukiant struktūrinių reformų | C19: SB = B–CB–1klp+SR | D19: Structural GG balance, excluding structural reforms | E19: SB = B–CB–1off+SR | F19: =F7-F15-'2. Macro'!M22+F18 -> -0.4191268589 | H19: =H7-H15-'2. Macro'!N22+H18 -> -0.8945015834 | J19: =J7-J15-'2. Macro'!M21+J18 -> 0.1041516118 | L19: =L7-L15-'2. Macro'!N21+L18 -> -0.7048105444
B20: Struktūrinis VSDF balansas | C20: SBVSDF = VSDF– CBVSDF–1klpVSDF | D20: Structural SSIF balance | E20: SBSSIF = SSIF– CBSSIF–1offSSIF | F20: =F8-F16-'2. Macro'!M24 -> 8.098679787 | H20: =H8-H16-'2. Macro'!N24 -> 0.1726905668 | J20: =J8-J16-'2. Macro'!M23 -> 8.23572891 | L20: =L8-L16-'2. Macro'!N23 -> 0.2207075967
B21: Struktūrinis PSDF balansas | C21: SBPSDF = PSDF– CBPSDF–1klpPSDF | D21: Structural NHIF balance | E21: SBNHIF = NHIF– CBNHIF–1offNHIF | F21: =F9-F17-'2. Macro'!M26 -> 0.01694557775 | H21: =H9-H17-'2. Macro'!N26 -> -0.1149357798 | J21: =J9-J17-'2. Macro'!M25 -> 0.07596194662 | L21: =L9-L17-'2. Macro'!N25 -> -0.09354205359
B22: Vidutinio laikotarpio tikslas | C22: VLT | D22: Medium-term objective | E22: MTO | F22: -1 | H22: -1 | J22: =F22 -> -1 | L22: =H22 -> -1
B23: Struktūrinio postūmio užduotis | C23: SPU | D23: Structural adjustment target | E23: SAT | F23: 0 | H23: 0 | J23: =F23 -> 0 | L23: =H23 -> 0
C25: Šaltiniai: | E25: Sources:
C26: Finansų ministerija, VSDF, PSDF | E26: Ministry of Finance, SSIF, NHIF
C27: Fiskalinės institucijos skaičiavimai | E27: Independent fiscal institution calculations
C29: Dėmesio: langeliai su formulėmis, atnaujinami tik spalvoti langeliai | E29: Warning: cells with formulas, data inputs are marked with coloured cells

Sheet 5. SurplusGG
B1: ↖ atgal į turinį | G1: ↖ back to content
A2: =Kalba -> LT
B3: 5 lentelė. Perteklinio VS taisyklės sąlygos | G3: Table 5. Conditions of the surplus GG sector rule
B4: Nr. | C4: Sąlyga | D4: Formulė | E4: Išvada | G4: No. | H4: Condition | I4: Formula | J4: Conclusion
C5: Institucija, kurios projekcijų pagrindu atliekama analizė | E5: FM | F5: IFI | H5: Institution, projections of which are used for the analysis | J5: MoF | K5: IFI
B6: S1 | C6: VS yra faktiškai perteklinis t metais pagal struktūrinį balansą | D6: SB(t) > 0* | E6: =IF(J6,"Tiesa","Netiesa") -> Netiesa | F6: =IF(K6,"Tiesa","Netiesa") -> Netiesa | G6: C1 | H6: In terms of structural balance GG sector is actually in surplus | I6: SB(t) > 0* | J6: =IF(J19>eps,TRUE,FALSE) -> FALSE | K6: =IF(K19>eps,TRUE,FALSE) -> FALSE
E7: =CONCATENATE(TEXT(ROUND(J19,1),"0,0; –0,0"),IF(J6," ≥ "," < "),"0,0") -> –0,9 < 0,0 | F7: =CONCATENATE(TEXT(K19,"0,0; –0,0"),IF(K6," ≥ "," < "),"0,0") -> –0,7 < 0,0 | J7: =CONCATENATE(TEXT(ROUND(J19,1),"0.0; –0.0"),IF(J6," ≥ "," < "),"0.1") -> –0.1 < 0.1 | K7: =CONCATENATE(TEXT(ROUND(K19,1),"0.0; –0.0"),IF(K6," ≥ "," < "),"0.1") -> –0.1 < 0.1
B8: S2 | C8: Faktinio struktūrinio VS balanso rodiklio absoliučioji vertė yra mažesnė negu VLT absoliučioji vertė ir kiekvienais metais mažėja, išskyrus metus, kai produkcijos atotrūkio nuo potencialo rodiklis yra neigiamas | D8: |SB(t)| < |VLT| ir |SB(t)| < |SB(t–1)| ir AP(t) ≥ 0 | E8: =IF(J8,"Tiesa","Netiesa") -> Netiesa | F8: =IF(K8,"Tiesa","Netiesa") -> Netiesa | G8: C2 | H8: Actual structural GG sector balance indicator in absolute value is lower than MTO in absolute value and is annually decreasing, with the exception of the year when the output gap is negative | I8: |SB(t)| < |MTO| and |SB(t)| < |SB(t–1)| and OG(t) ≥ 0 | J8: =IF((J22>=-eps)*(ABS(J19)+eps<ABS($J$21))*(ABS(J19)<ABS(J20)),TRUE,FALSE) -> FALSE | K8: =IF((K22>=-eps)*(ABS(K19)+eps<ABS($J$21))*(ABS(K19)+0.1<ABS(K20)),TRUE,FALSE) -> FALSE
E9: =CONCATENATE(TEXT(ROUND(ABS(E19),1),"0,0; –0,0"),IF(ABS(E19)+eps<ABS($E$21)," < "," ≥ "),TEXT(ROUND(ABS(E21),1),"0,0; –0,0")," ir ",TEXT(ROUND(ABS(E19),2),"0,0; –0,0"),IF(ABS(E19)<ABS(E20)," < "," ≥ "),TEXT(ROUND(ABS(E20),2),"0,0; –0,0")," ir ",TEXT(ROUND(E22,1),"0,0; –0,0"),IF(E22<-eps," < "," ≥ "),"0,0") -> 0,9 < 1,0 ir 0,9 ≥ 0,4 ir 4,0 ≥ 0,0 | F9: =CONCATENATE(TEXT(ROUND(ABS(F19),2),"0,0; –0,0"),IF(ABS(F19)+eps<ABS($E$21)," < "," ≥ "),TEXT(ROUND(ABS(E21),2),"0,0; –0,0")," ir ",TEXT(ROUND(ABS(F19),2),"0,0; –0,0"),IF(ABS(F19)+0.1<ABS(F20)," < "," ≥ "),TEXT(ROUND(ABS(F20),2),"0,0; –0,0")," ir ",TEXT(ROUND(F22,2),"0,0; –0,0"),IF(F22<-eps," < "," ≥ "),"0,0") -> 0,7 < 1,0 ir 0,7 ≥ 0,1 ir 3,5 ≥ 0,0 | J9: =CONCATENATE(TEXT(ROUND(ABS(J19),1),"0.0; –0.0"),IF(ABS(J19)+eps<ABS($J$21)," < "," ≥ "),TEXT(ROUND(ABS($J$21),1),"0.0; –0.0")," and ",TEXT(ROUND(ABS(J19),1),"0.0; –0.0"),IF(ABS(J19)<ABS(J20)," < "," ≥ "),TEXT(ROUND(ABS(J20),1),"0.0; –0.0")," and ",TEXT(ROUND(J22,1),"0.0; –0.0"),IF(J22<-eps," < "," ≥ "),"0.0") -> 0.1 < 0.1 and 0.1 ≥ 0.0 and 0.4 ≥ 0.0 | K9: =CONCATENATE(TEXT(ROUND(ABS(K19),2),"0.0; –0.0"),IF(ABS(K19)+eps<ABS($J$21)," < "," ≥ "),TEXT(ROUND(ABS($J$21),2),"0.0; –0.0")," and ",TEXT(ROUND(ABS(K19),2),"0.0; –0.0"),IF(ABS(K19)+0.1<ABS(K20)," < "," ≥ "),TEXT(ROUND(ABS(K20),2),"0.0; –0.0")," and ",TEXT(ROUND(K22,2),"0.0; –0.0"),IF(K22<-eps," < "," ≥ "),"0.0") -> 0.1 < 0.1 and 0.1 ≥ 0.0 and 0.4 ≥ 0.0
B10: S3 | C10: Faktinio struktūrinio VS balanso rodiklio absoliučioji vertė yra mažesnė negu VLT absoliučioji vertė tais metais, kai produkcijos atotrūkio nuo potencialo rodiklis yra neigiamas | D10: |SB(t)| < |VLT| ir AP(t) < 0 | E10: =IF(J10,"Tiesa","Netiesa") -> Netiesa | F10: =IF(K10,"Tiesa","Netiesa") -> Netiesa | G10: C3 | H10: Actual structural GG sector balance indicator in absolute value is lower than the MTO in absolute value in the year when the output gap is negative | I10: |SB(t)| < |MTO| and OG(t) < 0 | J10: =IF((J22<-eps)*(ABS(J19)+eps<ABS($J$21)),TRUE,FALSE) -> FALSE | K10: =IF((K22<-eps)*(ABS(K19)+eps<ABS($J$21)),TRUE,FALSE) -> FALSE
E11: =CONCATENATE(TEXT(ROUND(ABS(E19),1),"0,0; –0,0"),IF(ABS(E19)+eps<ABS($E$21)," < "," ≥ "),TEXT(ROUND(ABS($E$21),1),"0,0; –0,0")," ir ",TEXT(ROUND(E22,1),"0,0; –0,0"),IF(E22<-eps," < "," ≥ "),"0,0") -> 0,9 < 1,0 ir 4,0 ≥ 0,0 | F11: =CONCATENATE(TEXT(ROUND(ABS(F19),1),"0,0; –0,0"),IF(ABS(F19)+eps<ABS($E$21)," < "," ≥ "),TEXT(ROUND(ABS($E$21),1),"0,0; –0,0")," ir ",TEXT(ROUND(F22,1),"0,0; –0,0"),IF(F22<-eps," < "," ≥ "),"0,0") -> 0,7 < 1,0 ir 3,5 ≥ 0,0 | J11: =CONCATENATE(TEXT(ROUND(ABS(J19),1),"0.0; –0.0"),IF(ABS(J19)+eps<ABS($J$21)," < "," ≥ "),TEXT(ROUND(ABS($J$21),1),"0.0; –0.0")," and ",TEXT(ROUND(J22,1),"0.0; –0.0"),IF(J22<-eps," < "," ≥ "),"0.0") -> 0.1 < 0.1 and 0.4 ≥ 0.0 | K11: =CONCATENATE(TEXT(ROUND(ABS(K19),1),"0.0; –0.0"),IF(ABS(K19)+eps<ABS($J$21)," < "," ≥ "),TEXT(ROUND(ABS($J$21),1),"0.0; –0.0")," and ",TEXT(ROUND(K22,1),"0.0; –0.0"),IF(K22<-eps," < "," ≥ "),"0.0") -> 0.1 < 0.1 and 0.4 ≥ 0.0
B12: S4 | C12: Faktinio struktūrinio VS balanso rodiklio postūmio VLT link absoliučioji vertė yra ne mažesnė negu struktūrinio postūmio užduoties absoliučioji vertė | D12: SPU(t) > 0 ir SB(t) ≥ SB(t–1)+SPU(t) | E12: =IF(J12,"Tiesa","Netiesa") -> Netiesa | F12: =IF(K12,"Tiesa","Netiesa") -> Netiesa | G12: C4 | H12: Actual structural GG sector balance indicator adjustment towards the MTO in absolute value is not lower than the structural adjustment target in absolute value. | I12: SAT(t) > 0 and SB(t) ≥ SB(t–1)+SAT(t) | J12: =IF(($J$23>0)*(J19>=J20+$J$23),TRUE,FALSE) -> FALSE | K12: =IF(($J$23>0)*(K19>=K20+$J$23),TRUE,FALSE) -> FALSE
E13: =IF($E$23=0,"Netaikoma",CONCATENATE(TEXT(ROUND(E19,1),"0,0; –0,0"),IF(E19>=E20+$E$23," ≥ "," < "),TEXT(ROUND(E20,1),"0,0; –0,0")," + ",TEXT(ROUND($E$23,1),"0,0; –0,0")," = ",TEXT(ROUND(J20+$E$23,1),"0,0; –0,0"))) -> Netaikoma | F13: =IF($E$23=0,"Netaikoma",CONCATENATE(TEXT(ROUND(F19,1),"0,0; –0,0"),IF(F19>=F20+$E$23," ≥ "," < "),TEXT(ROUND(F20,1),"0,0; –0,0")," + ",TEXT(ROUND($E$23,1),"0,0; –0,0")," = ",TEXT(ROUND(K20+$E$23,1),"0,0; –0,0"))) -> Netaikoma | J13: =IF($J$23=0,"Not aplicaple",CONCATENATE(TEXT(ROUND(J19,1),"0.0; –0.0"),IF(J19>=J20+$J$23," ≥ "," < "),TEXT(ROUND(J20,1),"0.0; –0.0")," + ",TEXT(ROUND($J$23,1),"0.0; –0.0")," = ",TEXT(ROUND(J20+$J$23,1),"0.0; –0.0"))) -> Not aplicaple | K13: =IF($J$23=0,"Not aplicaple",CONCATENATE(TEXT(ROUND(K19,1),"0.0; –0.0"),IF(K19>=K20+$J$23," ≥ "," < "),TEXT(ROUND(K20,1),"0.0; –0.0")," + ",TEXT(ROUND($J$23,1),"0.0; –0.0")," = ",TEXT(ROUND(K20+$J$23,1),"0.0; –0.0"))) -> Not aplicaple
B14: S | C14: t metais, išskyrus metus, kuriais susidaro išskirtinės aplinkybės, turi būti tenkinama bent viena iš S1–S4 sąlygų | E14: =IF(OR(J6,J8,J10,J12),"Taip","Ne") -> Ne | F14: =IF(OR(K6,K8,K10,K12),"Taip","Ne") -> Ne | G14: C | H14: At year t, with the exception of the year of exceptional circumstances, at least one of the C1–C4 conditions is satisfied | J14: =IF(E31>0,"Yes","No") -> No | K14: =IF(F31>0,"Yes","No") -> No
E15: =IF(J14="Yes",IF(E31=1,CONCATENATE("Tenkinama ",I27,I28,I29,I30," sąlyga"),CONCATENATE("Tenkinamos ", IF(E27=1,CONCATENATE(I27," "),""),IF(E28=1,CONCATENATE(I28," "),""),IF(E29=1,CONCATENATE(I29," "),""),IF(E30=1,CONCATENATE(I30," "),""),"sąlygos")),"Netenkinama nei viena iš sąlygų") -> Netenkinama nei viena iš sąlygų | F15: =IF(K14="Yes",IF(F31=1,CONCATENATE("Tenkinama ",H27,H28,H29,H30," sąlyga"),CONCATENATE("Tenkinamos ", IF(F27=1,CONCATENATE(H27," "),""),IF(F28=1,CONCATENATE(H28," "),""),IF(F29=1,CONCATENATE(H29," "),""),IF(F30=1,CONCATENATE(H30," "),""),"sąlygos")),"Netenkinama nei viena iš sąlygų") -> Netenkinama nei viena iš sąlygų | J15: =IF(J14="Yes",IF(E31=1,CONCATENATE("Condition ",J27,J28,J29,J30," is valid"),CONCATENATE("Conditions ", IF(E27=1,CONCATENATE(J27," "),""),IF(E28=1,CONCATENATE(J28," "),""),IF(E29=1,CONCATENATE(J29," "),""),IF(E30=1,CONCATENATE(J30," "),""),"are valid")),"None of the conditions is valid") -> None of the conditions is valid | K15: =IF(K14="Yes",IF(F31=1,CONCATENATE("Condition ",K27,K28,K29,K30," is valid"),CONCATENATE("Conditions ", IF(F27=1,CONCATENATE(K27," "),""),IF(F28=1,CONCATENATE(K28," "),""),IF(F29=1,CONCATENATE(K29," "),""),IF(F30=1,CONCATENATE(K30," "),""),"are valid")),"None of the conditions is valid") -> None of the conditions is valid
C16: * nelygybės ženklas yra griežtas, jei skirtumas tarp lyginamų pusių po apvalinimo sudaro bent 0,1, kitaip ženklas interpretuojamas kaip = | H16: * inequality sign is strict, if a difference between both compared sides after rounding is at least 0,1, else the sign is interpreted as =
C17: Šaltinis: KĮ 3 straipsnis 1 dalis | H17: Source: CL Article 3(1)
D18: t = | E18: 2019 | I18: t = | J18: =E18 -> 2019
D19: SB(t) = | E19: ='3. GGbudget'!H19 -> -0.8945015834 | F19: ='3. GGbudget'!L19 -> -0.7048105444 | I19: SB(t) = | J19: =E19 -> -0.8945015834 | K19: =F19 -> -0.7048105444
D20: SB(t–1) = | E20: ='3. GGbudget'!F19 -> -0.4191268589 | F20: ='3. GGbudget'!J19 -> 0.1041516118 | I20: SB(t–1) = | J20: -0.4191268589 | K20: =F20 -> 0.1041516118
D21: VLT = | E21: ='3. GGbudget'!H22 -> -1 | I21: MTO = | J21: -1
D22: AP(t) = | E22: ='2. Macro'!N20 -> 3.971988245 | F22: ='2. Macro'!N19 -> 3.496572107 | I22: OG(t) = | J22: 3.971988245 | K22: =F22 -> 3.496572107
D23: SPU(t) = | E23: ='3. GGbudget'!H23 -> 0 | I23: SAT(t) = | J23: 0
D24: Šaltiniai: | I24: Sources:
D25: Finansų ministerija | E25: FM | I25: Ministry of Finance | J25: MoF
D26: Fiskalinė institucija | E26: IFI | I26: Independent Fiscal Institution | J26: IFI
C27: S1 | D27: C1 | E27: =J6*1 -> 0 | F27: =(K6)*1 -> 0 | G27: =IF(#REF!=1,$C27,"") ->  | H27: =IF(F27=1,$C27,"") ->  | I27: =IF(E27=1,$C27,"") ->  | J27: =IF(E27=1,$D27,"") -> 
C28: S2 | D28: C2 | E28: =J8*1 -> 0 | F28: =(K8)*1 -> 0 | G28: =IF(#REF!=1,$C28,"") ->  | H28: =IF(F28=1,$C28,"") ->  | I28: =IF(E28=1,$C28,"") -> 
C29: S3 | D29: C3 | E29: =J10*1 -> 0 | F29: =(K10)*1 -> 0 | G29: =IF(#REF!=1,$C29,"") ->  | H29: =IF(F29=1,$C29,"") ->  | I29: =IF(E29=1,$C29,"") -> 
C30: S4 | D30: C4 | E30: =J12*1 -> 0 | F30: =(K12)*1 -> 0 | G30: =IF(#REF!=1,$C30,"") ->  | H30: =IF(F30=1,$C30,"") ->  | I30: =IF(E30=1,$C30,"") -> 
E31: =SUM(E27:E30) -> 0 | F31: =SUM(F27:F30) -> 0

Sheet 6. GGexpenditure
B1: ↖ atgal į turinį | H1: ↖ back to content
A2: =Kalba -> LT
B3: 6 lentelė. VS išlaidų augimo ribojimo taisyklė | H3: Table 6. GG expenditure growth limiting rule
B4: Nr. | C4: VS išlaidų augimo ribojimo taisyklės netaikymo aplinkybės | D4: Formulė | F4: Išvada | H4: No. | I4: GG expenditure growh limiting rule application escape clause | J4: Formula | L4: Conclusion
C5: Institucija, kurios projekcijų pagrindu atliekama analizė | F5: FM | G5: IFI | I5: Institution, projections of which are used for the analysis | L5: MoF | M5: IFI
B6: A1 | C6: Pagal 4 paskutinius metų ketvirčius apskaičiuotas Lietuvos BVP to meto kainomis augimas yra mažesnis negu daugiametis ES BVP to meto kainomis augimas, padidintas 2 procentiniais punktais | F6: =IF(L6,"Tiesa","Netiesa") -> Netiesa | G6: =IF(M6,"Tiesa","Netiesa") -> Netiesa | H6: E1 | I6: Lithuanian GDP at current prices calculated on the basis of 4 last quarters of the year grows at a slower pace than the multi-annual growth of the GDP of the EU at current prices increased by 2 percentage points | L6: =IF('6. GGexpenditure'!L44+eps<AVERAGE('2. Macro'!I33:M33)+2,TRUE,FALSE) -> FALSE | M6: =IF('6. GGexpenditure'!M44+eps<AVERAGE('2. Macro'!I33:M33)+2,TRUE,FALSE) -> FALSE
F7: =CONCATENATE(TEXT(ROUND('6. GGexpenditure'!L44,1),"0,0;–0,0"),IF(L6," < "," ≥ "),TEXT(ROUND(AVERAGE('2. Macro'!I33:M33)+2,1),"0,0;–0,0")) -> 7,1 ≥ 5,2 | G7: =CONCATENATE(TEXT(ROUND('6. GGexpenditure'!M44,1),"0,0;–0,0"),IF(M6," < "," ≥ "),TEXT(ROUND(AVERAGE('2. Macro'!I33:M33)+2,1),"0,0;–0,0")) -> 7,1 ≥ 5,2 | L7: =CONCATENATE(TEXT(ROUND('6. GGexpenditure'!L44,1),"0.0;–0.0"),IF(L6," < "," ≥ "),TEXT(ROUND(AVERAGE('2. Macro'!I33:M33)+2,1),"0.0;–0.0")) -> 0.7 ≥ 0.5 | M7: =CONCATENATE(TEXT(ROUND('6. GGexpenditure'!M44,1),"0.0;–0.0"),IF(M6," < "," ≥ "),TEXT(ROUND(AVERAGE('2. Macro'!I33:M33)+2,1),"0.0;–0.0")) -> 0.7 ≥ 0.5
B8: A2* | C8: A2, kai numatomas einamųjų metų VS balanso rodiklio teigiamas postūmis nėra mažesnis už suplanuotą einamųjų kalendorinių metų VS balanso rodiklio teigiamą postūmį daugiau kaip 0,5 procentinio punkto BVP to meto kainomis | D8: B(t) ≥ B(t–1)+1 ir B(t–1)–B(t–2) ≥ BP(t–1)–BP(t–2)+0,5 | F8: =IF(L8,"Tiesa","Netiesa") -> Netiesa | G8: =IF(M8,"Tiesa","Netiesa") -> Netiesa | H8: E2* | I8: E2, when projected current year GG sector balance indicator positive adjustment is not greater than planned current year GG positive adjustment more than by 0,5 % of GDP at current prices | J8: B(t) ≥ B(t–1)+1 and B(t–1)–B(t–2) ≥ BP(t–1)–BP(t–2)+0,5 | L8: =IF(('3. GGbudget'!G7>='3. GGbudget'!F7+1)*(L38-L39>=0.5),TRUE,FALSE) -> FALSE | M8: =IF(('3. GGbudget'!K7>='3. GGbudget'!J7+1)*(M38-M39>=0.5),TRUE,FALSE) -> FALSE
F9: =CONCATENATE(TEXT(ROUND('3. GGbudget'!H7,1),"0,0;–0,0"),IF(('3. GGbudget'!H7>='3. GGbudget'!F7+1)," ≥ "," < "),TEXT(ROUND('3. GGbudget'!F7+1,1),"0,0;–0,0")," ir ",TEXT(ROUND(F38,1),"0,0;–0,0"),IF(F38-F39>=0.5," ≥ "," < "),TEXT(ROUND(F39+0.5,1),"0,0;–0,0")) -> 0,3 < 1,6 ir 0,1 < 0,8 | G9: =CONCATENATE(TEXT(ROUND('3. GGbudget'!L7,1),"0,0;–0,0"),IF(('3. GGbudget'!L7>='3. GGbudget'!J7+1)," ≥ "," < "),TEXT(ROUND('3. GGbudget'!J7+1,1),"0,0;–0,0")," ir ",TEXT(ROUND(G38,1),"0,0;–0,0"),IF(G38-G39>=0.5," ≥ "," < "),TEXT(ROUND(G39+0.5,1),"0,0;–0,0")) -> 0,3 < 1,6 ir 0,1 < 0,8 | L9: =CONCATENATE(TEXT(ROUND('3. GGbudget'!H7,1),"0.0;–0.0"),IF(('3. GGbudget'!H7>='3. GGbudget'!F7+1)," ≥ "," < "),TEXT(ROUND('3. GGbudget'!F7+1,1),"0.0;–0.0")," ir ",TEXT(ROUND(F38,1),"0.0;–0.0"),IF(F38-F39>=0.5," ≥ "," < "),TEXT(ROUND(F39+0.5,1),"0.0;–0.0")) -> 0.0 < 0.2 ir 0.0 < 0.1 | M9: =CONCATENATE(TEXT(ROUND('3. GGbudget'!L7,1),"0.0;–0.0"),IF(('3. GGbudget'!L7>='3. GGbudget'!J7+1)," ≥ "," < "),TEXT(ROUND('3. GGbudget'!J7+1,1),"0.0;–0.0")," ir ",TEXT(ROUND(G38,1),"0.0;–0.0"),IF(G38-G39>=0.5," ≥ "," < "),TEXT(ROUND(G39+0.5,1),"0.0;–0.0")) -> 0.0 < 0.2 ir 0.0 < 0.1
B10: A2 | C10: Numatomas VS balanso rodiklio postūmis yra teigiamas ir sudaro bent 1,0 procentinį punktą BVP | D10: B(t) ≥ B(t–1)+1 | F10: =IF(L10,"Tiesa","Netiesa") -> Netiesa | G10: =IF(M10,"Tiesa","Netiesa") -> Netiesa | H10: E2 | I10: Projected GG sector balance indicator adjustment is positive and makes up at least 1.0 percentage point of GDP | J10: B(t) ≥ B(t–1)+1 | L10: =IF('3. GGbudget'!H7>=-0.4+1,TRUE,FALSE) -> FALSE | M10: =IF('3. GGbudget'!L7>='3. GGbudget'!J7+1,TRUE,FALSE) -> FALSE
F11: =CONCATENATE(TEXT(ROUND('3. GGbudget'!H7-'3. GGbudget'!F7,1),"0,0;–0,0"),IF(L10," ≥ "," < "),TEXT(ROUND(1,1),"0,0;–0,0")) -> –0,3 < 1,0 | G11: =CONCATENATE(TEXT(ROUND('3. GGbudget'!L7-'3. GGbudget'!J7,1),"0,0;–0,0"),IF(M10," ≥ "," < "),TEXT(ROUND(1,1),"0,0;–0,0")) -> –0,3 < 1,0 | L11: =CONCATENATE(TEXT(ROUND('3. GGbudget'!H7-'3. GGbudget'!F7,1),"0.0;–0.0"),IF(L10," ≥ "," < "),TEXT(ROUND(1,1),"0.0;–0.0")) -> –0.0 < 0.1 | M11: =CONCATENATE(TEXT(ROUND('3. GGbudget'!L7-'3. GGbudget'!J7,1),"0.0;–0.0"),IF(M10," ≥ "," < "),TEXT(ROUND(1,1),"0.0;–0.0")) -> –0.0 < 0.1
B12: A3 | C12: Ne mažiau kaip penkerių iš eilės einančių metų VS balanso rodiklio aritmetinis vidurkis yra perteklius, ne mažesnis negu 0,1 procento BVP | F12: =IF(L12,"Tiesa","Netiesa") -> Tiesa | G12: =IF(M12,"Tiesa","Netiesa") -> Tiesa | H12: E3 | I12: The arithmetic average of GG sector balance indicator of at least five successive years is in surplus, at least 0.1 % of GDP | L12: =IF(ROUND(AVERAGE('2. Macro'!J37:N37),1)>=0.1,TRUE,FALSE) -> TRUE | M12: =IF(ROUND(AVERAGE('2. Macro'!I36:M36),1)>=0.1,TRUE,FALSE) -> TRUE
F13: =CONCATENATE(TEXT(ROUND(AVERAGE('2. Macro'!I37:M37),1),"0,0;–0,0"),IF(L12," ≥ "," < "),"0,1") -> 0,1 ≥ 0,1 | G13: =CONCATENATE(TEXT(ROUND(AVERAGE('2. Macro'!I36:M36),1),"0,0;–0,0"),IF(M12," ≥ "," < "),"0,1") -> 0,1 ≥ 0,1 | L13: =CONCATENATE(TEXT(ROUND(AVERAGE('2. Macro'!I37:M37),1),"0.0;–0.0"),IF(L12," ≥ "," < "),"0,1") -> 0.0 ≥ 0,1 | M13: =CONCATENATE(TEXT(ROUND(AVERAGE('2. Macro'!I36:M36),1),"0.0;–0.0"),IF(M12," ≥ "," < "),"0.1") -> 0.0 ≥ 0.1
B14: A4 | C14: Keičiant einamųjų metų bet kurio iš VS priskiriamų biudžetų, kurių kiekvieno atskirai planuojami asignavimai viršija 3 procentus BVP to meto kainomis, pajamas ar išlaidas, pakeistas VS balansas nepablogės, palyginti su buvusiu prieš keitimą | D14: B**(t–1) ≥ B(t–1) | F14: Netaikoma | G14: =F14 -> Netaikoma | H14: E4 | I14: If planned current year GG sector budgets, the planned appropriations of each of which exceed 3 % of GDP at current prices, are subject to amendment, the adjusted aggregate balances of the GG budgets is not worse than the one before the amendment | J14: B**(t–1) ≥ B(t–1) | L14: Not applied | M14: =L14 -> Not applied
B15: A5 | C15: Pagal Vyriausybės arba jos įgaliotos institucijos viešai paskelbtą ekonominės raidos scenarijų, dėl kurio tvirtinimo kontrolės institucija paskelbė išvadą, apskaičiuotas produkcijos atotrūkis nuo potencialo planuojamais metais yra neigiamas | D15: AP(t) < 0 | F15: =IF(L15,"Tiesa","Netiesa") -> Netiesa | G15: =IF(M15,"Tiesa","Netiesa") -> Netiesa | H15: E5 | I15: The output gap for the planned year calculated on the basis of the economic development scenario, which is made public by the Government or its authorised institution and in regard to which the monitoring authority published its conclusion, is negative | J15: OG(t) < 0 | L15: =IF(L45+eps<0,TRUE,FALSE) -> FALSE | M15: =IF(M45+eps<0,TRUE,FALSE) -> FALSE
F16: =CONCATENATE(TEXT(ROUND(L45,1),"0,0;–0,0"),IF(L15," < "," ≥ "),FIXED(0,1)) -> 4,0 ≥ 0,0 | G16: =CONCATENATE(TEXT(ROUND(M45,1),"0,0;–0,0"),IF(M15," < "," ≥ "),FIXED(0,1)) -> 3,5 ≥ 0,0 | L16: =CONCATENATE(TEXT(ROUND(L45,1),"0.0;–0.0"),IF(L15," < "," ≥ "),FIXED(0,1)) -> 0.4 ≥ 0,0 | M16: =CONCATENATE(TEXT(ROUND(M45,1),"0.0;–0.0"),IF(M15," < "," ≥ "),FIXED(0,1)) -> 0.4 ≥ 0,0
B17: A5* | C17: A5, o prognozuojama vidutinė metinė infliacija, apskaičiuojama pagal suderintą vartotojų kainų indeksą, neviršija 3 procentų | D17: AP(t) < 0 ir ΔSVKI(t) ≤ 3 | F17: =IF(L17,"Tiesa","Netiesa") -> Netiesa | G17: =IF(M17,"Tiesa","Netiesa") -> Netiesa | H17: E5* | I17: E5, and project annual inflation, estimated by harmonised index of consumer prices is not greater that 3 % | J17: OG(t) < 0 and ΔHICP(t) ≤ 3 | L17: =IF((F45+eps<0)*($F$46<=3),TRUE,FALSE) -> FALSE | M17: =IF((G45+eps<0)*($F$46<=3),TRUE,FALSE) -> FALSE
F18: =CONCATENATE(TEXT(ROUND(L45,1),"0,0;–0,0"),IF(L15," < "," ≥ "),FIXED(0,1), " ir ", TEXT(ROUND($L$46,1),"0,0;–0,0"),IF(L46<=3," ≤ "," > "), FIXED(3,1)) -> 4,0 ≥ 0,0 ir 2,2 ≤ 3,0 | G18: =CONCATENATE(TEXT(ROUND(M45,1),"0,0;–0,0"),IF(M15," < "," ≥ "),FIXED(0,1), " ir ", TEXT(ROUND($L$46,1),"0,0;–0,0"),IF(L46<=3," ≤ "," > "), FIXED(3,1)) -> 3,5 ≥ 0,0 ir 2,2 ≤ 3,0 | L18: =CONCATENATE(TEXT(ROUND(L45,1),"0.0;–0.0"),IF($L$15," < "," ≥ "),FIXED(0,1), " and ", TEXT(ROUND($L$46,1),"0.0;–0.0"),IF(L46<=3," ≤ "," > "), FIXED(3,1)) -> 0.4 ≥ 0,0 and 0.2 ≤ 3,0 | M18: =CONCATENATE(TEXT(ROUND(M45,1),"0.0;–0.0"),IF($L$15," < "," ≥ "),FIXED(0,1), " and ", TEXT(ROUND($L$46,1),"0.0;–0.0"),IF(L46<=3," ≤ "," > "), FIXED(3,1)) -> 0.4 ≥ 0,0 and 0.2 ≤ 3,0
B19: A | C19: t metais, VS išlaidų augimo ribojimo taisyklė netaikoma, kai susidaro bent viena iš A1–A5 aplinkybių | F19: =IF(L19="yes","Taip","Ne") -> Taip | G19: =IF(M19="yes","Taip","Ne") -> Taip | H19: E | I19: at year t the GG expenditure growth limiting rule is not applied when at least one of the E1–E5 escape clauses emerges | L19: =+IF((OR(L6=TRUE,L10=TRUE,L12=TRUE,L14=TRUE,L15=TRUE)),"Yes","No") -> Yes | M19: =+IF((OR(M6=TRUE,M10=TRUE,M12=TRUE,M14=TRUE,M15=TRUE)),"Yes","No") -> Yes
F20: =IF(F19="TAIP",IF(F60=1,CONCATENATE("Susidaro ",H55,H56,H57,H58,H59," aplinkybė"),CONCATENATE("Susidaro ", IF(F55=1,CONCATENATE(H55," "),""),IF(F56=1,CONCATENATE(H56," "),""),IF(F57=1,CONCATENATE(H57," "),""),IF(F58=1,CONCATENATE(H58," "),""),IF(F59=1,CONCATENATE(H59," "),""),"aplinkybės")),"Išimčių nėra") -> Susidaro aplinkybės | G20: =IF(G19="TAIP",IF(G60=1,CONCATENATE("Susidaro ",I55,I56,I57,I58,I59," aplinkybė"),CONCATENATE("Susidaro ", IF(G55=1,CONCATENATE(I55," "),""),IF(G56=1,CONCATENATE(I56," "),""),IF(G57=1,CONCATENATE(I57," "),""),IF(G58=1,CONCATENATE(I58," "),""),IF(G59=1,CONCATENATE(I59," "),""),"aplinkybės")),"Išimčių nėra") -> Susidaro aplinkybės | L20: =IF(L19="YES",IF(F60=1,CONCATENATE("Escape clause ",J55,J56,J57,J58,J59," emerges"),CONCATENATE("Escape clauses ", IF(F55=1,CONCATENATE(J55," "),""),IF(F56=1,CONCATENATE(J56," "),""),IF(F57=1,CONCATENATE(J57," "),""),IF(F58=1,CONCATENATE(J58," "),""),IF(F59=1,CONCATENATE(J59," "),""),"emerge") ),"There is no escape clauses") -> Escape clauses emerge | M20: =IF(M19="YES",IF(G60=1,CONCATENATE("Escape clause ",K55,K56,K57,K58,K59," emerges"),CONCATENATE("Escape clauses ", IF(G55=1,CONCATENATE(K55," "),""),IF(G56=1,CONCATENATE(K56," "),""),IF(G57=1,CONCATENATE(K57," "),""),IF(G58=1,CONCATENATE(K58," "),""),IF(G59=1,CONCATENATE(K59," "),""),"emerge") ),"There is no escape clauses") -> Escape clauses emerge
B21: Nr. | C21: Taisyklė | D21: Formulė | F21: Išvada | H21: No. | I21: Rule | J21: Formula | L21: Conclusion
B22: T1 | C22: Metais t rengiant, tvirtinant ir keičiant VS priskiriamų biudžetų, kurių kiekvieno atskirai planuojami asignavimai viršija 3 proc. BVP to meto kainomis (CV, VSDF ir PSDF išlaidos), patvirtinimo įstatymų arba šių įstatymų pakeitimo įstatymų projektus, vadovaujamasi nuostata, kad tuo atveju, kai paskutinių penkerių pasibaigusių metų VS balanso rodiklių aritmetinis vidurkis yra neigiamas, šių biudžetų asignavimų (išskyrus ES finansinės paramos lėšas) visumos augimas turi būti ne didesnis negu 0,5 potencialaus BVP to meto kainomis daugiamečio augimo vidurkio | D22: Jei | F22: =IF((L19="YES"),"",IF(L22,"Tiesa","Netiesa")) ->  | G22: =IF((M19="YES"),"",IF(M22,"Tiesa","Netiesa")) ->  | H22: R1 | I22: At year t the preparation, approval and amendment of draft laws or their draft amending laws on approval of the budgets attributable to the GG sector the planned appropriations of each of which exceed 3 % of GDP (CG and SSF expenditure) at current prices shall rely on the provision that, in case where arithmetic average of GG sector balance indicators of the past five complete years is negative, the aggregate growth of the appropriations of these budgets (net of EU financial support) is not higher than 0.5 % of the average multi-annual growth rate of the potential GDP at current prices | J22: If | L22: =IF((L19="YES"),"",IF(AVERAGE('2. Macro'!I37:M37)+eps<0,TRUE,FALSE)) ->  | M22: =IF((M19="YES"),"",IF(AVERAGE('2. Macro'!I36:M36)+eps<0,TRUE,FALSE)) -> 
F23: =IF((L19="YES"),"",CONCATENATE(TEXT(ROUND(AVERAGE('2. Macro'!H37:L37),1),"0,0;–0,0"),IF(L12," ≥ "," < "),FIXED(0,1))) ->  | G23: =IF((M19="YES"),"",CONCATENATE(TEXT(ROUND(AVERAGE('2. Macro'!H37:L37),1),"0,0;–0,0"),IF(M12," ≥ "," < "),FIXED(0,1))) ->  | L23: =IF((L19="YES"),"",CONCATENATE(TEXT(ROUND(AVERAGE('2. Macro'!I37:M37),1),"0.0;–0.0"),IF(L12," ≥ "," < "),FIXED(0,1))) ->  | M23: =IF((M19="YES"),"",CONCATENATE(TEXT(ROUND(AVERAGE('2. Macro'!H36:L36),1),"0.0;–0.0"),IF(M12," ≥ "," < "),FIXED(0,1))) -> 
F24: =L24 ->  | G24: =M24 ->  | L24: =IF(L19="YES","",POWER('2. Macro'!R16/'2. Macro'!G16,0.1)*POWER(PRODUCT(F40:F43),0.25)-1) ->  | M24: =IF(M19="YES","",POWER('2. Macro'!R15/'2. Macro'!G15,0.1)*POWER(PRODUCT(F40:F43),0.25)-1) -> 
F25: =IF(F19="TAIP","Netaikoma,",IF(L25,"Tiesa","Netiesa")) -> Netaikoma, | G25: =IF(G19="TAIP","Netaikoma,",IF(M25,"Tiesa","Netiesa")) -> Netaikoma, | L25: =IF(L19="YES","Not applied,",IF($F$32-$F$34<=($F$33-$F$35)*(1+0.5*L24),TRUE,FALSE)) -> Not applied, | M25: =IF(M19="YES","Not applied,",IF($G$32-$F$34<=($G$33-$F$35)*(1+0.5*M24),TRUE,FALSE)) -> Not applied,
F26: =IF(L19="YES"," nes susidarė viena iš KĮ numatytų netaikymo aplinkybių",CONCATENATE(ROUND(($F$32-F34)/($F$33-F35),3),IF(L25," ≤ "," > "), ROUND(1+0.5*L24,3))) -> nes susidarė viena iš KĮ numatytų netaikymo aplinkybių | G26: =IF(M19="YES"," nes susidarė viena iš KĮ numatytų netaikymo aplinkybių",CONCATENATE(ROUND(($G$32-F34)/($G$33-F35),3),IF(M25," ≤ "," > "), ROUND(1+0.5*M24,3))) -> nes susidarė viena iš KĮ numatytų netaikymo aplinkybių | L26: =IF(L19="YES"," since one of CL escape clauses emerged",CONCATENATE(ROUND(($F$32-F34)/($F$33-F35),3),IF(L25," ≤ "," > "), ROUND(1+0.5*L24,3))) -> since one of CL escape clauses emerged | M26: =IF(M19="YES"," since one of CL escape clauses emerged",CONCATENATE(ROUND(($G$32-F34)/($G$33-F35),3),IF(M25," ≤ "," > "), ROUND(1+0.5*M24,3))) -> since one of CL escape clauses emerged
B27: T2 | C27: Pagal FDĮ panaši į T1 išlaidų ribojimo taisyklė turi būti pritaikyta visam konsoliduotam VS biudžetui (be Europos Sąjungos finansinės paramos lėšų) | F27: =IF(F19="TAIP","Netaikoma,",IF(L27,"Tiesa","Netiesa")) -> Netaikoma, | G27: =IF(G19="TAIP","Netaikoma,",IF(M27,"Tiesa","Netiesa")) -> Netaikoma, | H27: R2 | I27: According to FDL a similar to R1 GG consolidated budget's expenditure growth rule is applied (net of EU financial support) | L27: =IF(L19="YES","Not applied,",IF($F$36-$F$34<=($F$37-$F$35)*(1+0.5*L24),TRUE,FALSE)) -> Not applied, | M27: =IF(M19="YES","Not applied,",IF($F$36-$F$34<=($F$37-$F$35)*(1+0.5*M24),TRUE,FALSE)) -> Not applied,
F28: =IF(L19="YES"," nes susidarė viena iš FDĮ numatytų netaikymo aplinkybių",CONCATENATE(ROUND(($F$36-$F$34)/($F$37-$F$35),3),IF(L25," ≤ "," > "), ROUND(1+0.5*L24,3))) -> nes susidarė viena iš FDĮ numatytų netaikymo aplinkybių | G28: =IF(M19="YES"," nes susidarė viena iš FDĮ numatytų netaikymo aplinkybių",CONCATENATE(ROUND(($G$36-$F$34)/($G$37-$F$35),3),IF(M25," ≤ "," > "), ROUND(1+0.5*M24,3))) -> nes susidarė viena iš FDĮ numatytų netaikymo aplinkybių | L28: =IF(L19="YES"," since one of FDL escape clauses emerged",CONCATENATE(ROUND(($F$36-$F$34)/($F$37-$F$35),3),IF(L25," ≤ "," > "), ROUND(1+0.5*L24,3))) -> since one of FDL escape clauses emerged | M28: =IF(M19="YES"," since one of FDL escape clauses emerged",CONCATENATE(ROUND(($G$36-$F$34)/($G$37-$F$35),3),IF(M25," ≤ "," > "), ROUND(1+0.5*M24,3))) -> since one of FDL escape clauses emerged
C29: * nelygybės ženklas yra griežtas, jei skirtumas tarp lyginamų pusių po apvalinimo sudaro bent 0,1, kitaip ženklas interpretuojamas kaip = ** einamaisiais metais keičiamas VS balansas | I29: * inequality sign is strict, if a difference between both compared sides after rounding is at least 0,1, else the sign is interpreted as = ** the adjusted aggregate balances of the GG budgets
C30: Šaltiniai: KĮ 3 straipsnis 3 dalis, taisyklės pažymėtos * FDĮ 2-3 straipsniai | I30: Source: CL Article 3(3), rules denoted by * FDL Articles 2 and 3
E31: t = | F31: 2019 | K31: t = | L31: =F31 -> 2019
E32: AV3(t) = | F32: ='3. GGbudget'!I14 -> 15046.6381 | G32: ='3. GGbudget'!M14 -> 15046.6381 | K32: AG3(t) = | L32: 15046.6381 | M32: =G32 -> 15046.6381
E33: AV3(t–1) = | F33: ='3. GGbudget'!G14 -> 13965.20522 | G33: ='3. GGbudget'!K14 -> 13965.20522 | K33: AG3(t–1) = | L33: 13965.20522 | M33: =G33 -> 13965.20522
E34: ES(t) = | F34: 1862.323 | K34: EU(t) = | L34: 1862.323
E35: ES(t–1) = | F35: 1560.9016 | K35: EU(t–1) = | L35: 1560.9016
E36: VI(t) = | F36: ='3. GGbudget'!I11 -> 16894.405 | G36: ='3. GGbudget'!M11 -> 16894.405 | K36: TE(t) = | L36: 16894.405 | M36: =G36 -> 16894.405
E37: VI(t–1) = | F37: ='3. GGbudget'!G11 -> 15411.303 | G37: ='3. GGbudget'!K11 -> 15411.303 | K37: TE(t–1) = | L37: 15411.303 | M37: =G37 -> 15411.303
E38: B(t–1)–B(t–2) = | F38: =+'2. Macro'!M37-'2. Macro'!L37 -> 0.1461468875 | G38: =+'2. Macro'!M36-'2. Macro'!L36 -> 0.1461468875 | K38: B(t–1)–B(t–2) = | L38: 0.1461468875 | M38: =G38 -> 0.1461468875
E39: BP(t–1)–BP(t–2) = | F39: =+('2. Macro'!M37-'2. Macro'!L37)-('2. Macro'!L37-'2. Macro'!M37) -> 0.2922937749 | G39: =+('2. Macro'!M36-'2. Macro'!L36)-('2. Macro'!L36-'2. Macro'!M36) -> 0.2922937749 | K39: BP(t–1)–BP(t–2) = | L39: 0.2922937749 | M39: =G39 -> 0.2922937749
C40: 2019 m. rudens ERS | E40: PY1(t)/PY1(t–1) = | F40: 1.033389262 | K40: PY1(t)/PY1(t–1) = | L40: 1.033389262
C41: 2019 m. pavasario ERS | E41: PY2(t)/PY2(t–1) = | F41: 1.0225016 | K41: PY2(t)/PY2(t–1) = | L41: 1.0225016
C42: 2018 m. rudens ERS | E42: PY3(t)/PY3(t–1) = | F42: 1.026498153 | K42: PY3(t)/PY3(t–1) = | L42: 1.026498153
C43: 2018 m. pavasario ERS | E43: PY4(t)/PY4(t–1) = | F43: 1.020217777 | K43: PY4(t)/PY4(t–1) = | L43: 1.020217777
C44: 2018K1-2018K4 | E44: ΔYN(t–1) = | F44: 7.099470451 | G44: 7.099470451 | K44: ΔYN(t–1) = | L44: =F44 -> 7.099470451 | M44: =G44 -> 7.099470451
E45: AP(t) = | F45: ='2. Macro'!N20 -> 3.971988245 | G45: ='2. Macro'!N19 -> 3.496572107 | K45: OG(t) = | L45: 3.971988245 | M45: =G45 -> 3.496572107
E46: ΔSVKI(t) = | F46: ='2. Macro'!N31 -> 2.2 | K46: ΔHICP(t) = | L46: 2.2
E47: AV3(t)–ES(t)= | F47: =+F32-F34 -> 13184.3151 | G47: =+G32-F34 -> 13184.3151 | K47: AG3(t)–EU(t)= | L47: =+F47 -> 13184.3151 | M47: 13184.3151
E48: AV3(t–1)–ES(t–1)= | F48: =+F33-F35 -> 12404.30362 | G48: =+G33-F35 -> 12404.30362 | K48: AG3(t–1)–EU(t–1)= | L48: 12404.30362 | M48: 12404.30362
E49: (AV3(t)-ES(t))/(AV3(t-1)-ES(t-1))= | F49: =+(F47/F48-1)*100 -> 6.288232747 | G49: =+(G47/G48-1)*100 -> 6.288232747 | K49: (AG3(t)-EU(t))/(AG3(t-1)-EU(t-1))= | L49: 6.288232747 | M49: 6.288232747
E50: Ynp10t | F50: =(POWER('2. Macro'!Q16/'2. Macro'!G16,0.1)*POWER(PRODUCT(F40:F43),0.25)-1) -> 0.02322484295 | G50: =(POWER('2. Macro'!Q15/'2. Macro'!G15,0.1)*POWER(PRODUCT(F40:F43),0.25)-1) -> 0.01986081122 | K50: Ynp10t | L50: =+F50 -> 0.02322484295 | M50: =+G50 -> 0.01986081122
E51: Šaltiniai: | K51: Sources:
E52: Finansų ministerija | F52: FM | K52: Ministry of Finance | L52: MoF
E53: Fiskalinė institucija | F53: IFI | K53: Independent Fiscal Institution | L53: IFI
E54: Europos Komisija | F54: EK | K54: European Commission | L54: EC
D55: A1 | E55: E1 | F55: =(L6)*1 -> 0 | G55: =(M6)*1 -> 0 | H55: =IF(F55=1,$D55,"") ->  | J55: =IF(F55=1,$E55,"") -> 
D56: A2 | E56: E2 | F56: =(L10)*1 -> 0 | G56: =(M10)*1 -> 0
D57: A3 | E57: E3
D58: A4 | E58: E4
D59: A5 | E59: E5

Sheet 7. GGbudgets
B1: ↖ atgal į turinį | G1: ↖ back to content
A2: =Kalba -> LT
B3: 7 lentelė. VS priskiriamų biudžetų taisyklės | G3: Table 7. Rules for the budgets attributable to GG sector
B4: Nr. | C4: Taisyklė | D4: Formulė | E4: Išvada | G4: No. | H4: Rule | I4: Formula | J4: Conclusion
C5: Institucija, kurios projekcijų pagrindu atliekama analizė | E5: FM | F5: IFI | H5: Institution, projections of which are used for the analysis | J5: MoF | K5: IFI
B6: T31 | C6: Nuo 2018 m. sausio 1 d. kiekvienas j-asis vietos valdžios sektoriui priskiriamas biudžetas, kurio asignavimai viršija 0,3 procentą praėjusių metų BVP to meto kainomis, turi būti planuojamas, tvirtinamas, keičiamas ir vykdomas taip, kad, sprendžiant pagal to biudžeto struktūrinį balanso rodiklį, apskaičiuotą kaupiamuoju principu, jis būtų perteklinis arba subalansuotas | D6: t ≥ 2018 | E6: =IF(J6,"Tiesa","Netiesa") -> Tiesa | G6: R31 | H6: From 1 January 2018 each j-th budget attributable to local government sector, planned appropriations of which exceeds 0.3 % of GDP in the preceding year at current prices, must be planned, approved, amended and implemented to be in surplus or balanced when judged by its structural balance indicator calculated on accrual basis | I6: t ≥ 2018 | J6: =IF((J24)>=2018,TRUE,FALSE) -> TRUE
D7: SBj(t) ≥ 0, ꓯj | E7: Savivaldybių biudžetų atitiktis fiskalinės drausmės taisyklėms bus vertinama 2020 m. birželį | F7: Savivaldybių biudžetų atitiktis fiskalinės drausmės taisyklėms bus vertinama 2020 m. birželį | I7: SBj(t) ≥ 0, ꓯj | J7: Will be assessed in June 2020 | K7: Will be assessed in June 2020
C8: Taisyklė savivaldybių (j) asignavimams, kurie viršija 0,3 proc. BVP | H8: Rule for local governments (j) appropriations of which exceed 0.3 % of GDP
B9: T32 | C9: Nuo 2018 m. sausio 1 d. PSDF biudžetas turi būti planuojamas, tvirtinamas, keičiamas ir vykdomas taip, kad, sprendžiant pagal to biudžeto struktūrinį balanso rodiklį, apskaičiuotą kaupiamuoju principu, jis būtų perteklinis arba subalansuotas | D9: t ≥ 2018 | E9: =IF(E24>=2018,"Tiesa","Netiesa") -> Tiesa | G9: R32 | H9: From 1 January 2018 NHIF budget must be planned, approved, amended and implemented to be in surplus or balanced when judged by its structural balance indicator calculated on accrual basis | I9: t ≥ 2018 | J9: =IF(J24>=2018,"True","False") -> True
D10: SBPSDF(t) ≥ 0 | E10: =IF(E28>=0,"Tiesa","Netiesa") -> Netiesa | F10: =IF(F28>=0,"Tiesa","Netiesa") -> Netiesa | I10: SBPSDF(t) ≥ 0 | J10: =IF(J28>=0,"True","False") -> False | K10: =IF(K28>=0,"True","False") -> False
E11: =CONCATENATE(TEXT(ROUND(E28,1),"0,0;–0,0"),IF(E28>= 0," ≥ "," < "),FIXED(0,1)) -> –0,1 < 0,0 | F11: =CONCATENATE(TEXT(ROUND(F28,1),"0,0;–0,0"),IF(F28>= 0," ≥ "," < "),FIXED(0,1)) -> –0,1 < 0,0 | J11: =CONCATENATE(TEXT(ROUND(J28,1),"0.0;–0.0"),IF(J28>= 0," ≥ "," < "),FIXED(0,1)) -> –0.0 < 0,0 | K11: =CONCATENATE(TEXT(ROUND(K28,1),"0.0;–0.0"),IF(K28>= 0," ≥ "," < "),FIXED(0,1)) -> –0.0 < 0,0
C12: Taisyklė PSDF struktūriniam biudžetui | E12: =IF(E10="Netiesa","Netenkinama","Tenkinama") -> Netenkinama | F12: =IF(F10="Netiesa","Netenkinama","Tenkinama") -> Netenkinama | H12: Rule for NHIF structural budget | J12: =IF(J10="False","Not valid","Valid") -> Not valid | K12: =IF(K10="False","Not valid","Valid") -> Not valid
B13: T4 | C13: Nuo 2016 m. sausio 1 d. Lietuvos Respublikos atitinkamų metų VSDF biudžetas planuojamas, tvirtinamas, keičiamas ir vykdomas taip, kad jo struktūrinis deficitas, apskaičiuotas kaupiamuoju principu, galėtų didėti t metais, kuriems pagal Vyriausybės arba jos įgaliotos institucijos viešai paskelbtą ekonominės raidos scenarijų, dėl kurio tvirtinimo kontrolės institucija paskelbė savo išvadą, numatomas neigiamas produkcijos atotrūkis nuo potencialo | D13: t > 2016 | E13: =IF(J13,"Tiesa","Netiesa") -> Tiesa | G13: R4 | H13: From 1 January 2016 budget of the SSIF of the Republic of Lithuania for a year t shall be planned, approved, amended and implemented in such a way that its structural deficit calculated on accrual basis could increase only in the year when a negative output gap is projected according to the economic development scenario which is made public by the Government of the Republic of Lithuania or its authorised institutions and in regard of which the monitoring authority published its conclusion | I13: t > 2016 | J13: =IF(E24>2016,TRUE,FALSE) -> TRUE
D14: AP(t) < 0 | E14: =IF(J14,"Tiesa","Netiesa") -> Netiesa | F14: =IF(K14,"Tiesa","Netiesa") -> Netiesa | I14: OG(t) < 0 | J14: =IF(J25+eps<0,TRUE,FALSE) -> FALSE | K14: =IF(K25+eps<0,TRUE,FALSE) -> FALSE
E15: =CONCATENATE(TEXT(ROUND(J25,1),"0,0;–0,0"),IF(J25<0," < "," ≥ "),FIXED(0,1)) -> 4,0 ≥ 0,0 | F15: =CONCATENATE(TEXT(ROUND(K25,1),"0,0;–0,0"),IF(K25<0," < "," ≥ "),FIXED(0,1)) -> 3,5 ≥ 0,0 | J15: =CONCATENATE(TEXT(ROUND(J25,1),"0.0;–0.0"),IF(J25<0," < "," ≥ "),FIXED(0,1)) -> 0.4 ≥ 0,0 | K15: =CONCATENATE(TEXT(ROUND(K25,1),"0.0;–0.0"),IF(K25<0," < "," ≥ "),FIXED(0,1)) -> 0.4 ≥ 0,0
D16: AP(t) ≥ 0 ir SBVSDF(t) ≥ SBVSDF(t–1) arba SBVSDF(t) ≥ 0 | E16: =IF((E25>=0)*(E26>=0),"Tiesa","Netiesa") -> Tiesa | F16: =IF((F25>=0)*(F26>=0),"Tiesa","Netiesa") -> Tiesa | I16: OG(t) ≥ 0 and SBSSIF(t) ≥ SBSSIF(t–1) or SBSSIF(t) ≥ 0 | J16: =IF((J25>=0)*(J26>=J27),TRUE,FALSE) -> FALSE | K16: =IF((K25>=0)*(K26+eps>=K27),TRUE,FALSE) -> FALSE
E17: =CONCATENATE(TEXT(ROUND(E25,1),"0,0;–0,0"),IF(J16<0," < "," ≥ "),FIXED(0,1), " ir ", TEXT(ROUND(E26,1),"0,0;–0,0"),IF(E26>=E27," ≥ "," < "), TEXT(ROUND(E27,1),"0,0;–0,0"), " arba ",TEXT(ROUND(E26,1),"0,0;–0,0"),IF(J16<0," < "," ≥ "),FIXED(0,1),) -> 4,0 ≥ 0,0 ir 0,2 < 8,1 arba 0,2 ≥ 0,0 | F17: =CONCATENATE(TEXT(ROUND(F25,1),"0,0;–0,0"),IF(K16<0," < "," ≥ "),FIXED(0,1), " ir ", TEXT(ROUND(F26,1),"0,0;–0,0"),IF(F26>=F27," ≥ "," < "), TEXT(ROUND(F27,1),"0,0;–0,0"), " arba ",TEXT(ROUND(F26,1),"0,0;–0,0"),IF(K16<0," < "," ≥ "),FIXED(0,1),) -> 3,5 ≥ 0,0 ir 0,2 < 8,2 arba 0,2 ≥ 0,0 | J17: =CONCATENATE(TEXT(ROUND(E25,1),"0.0;–0.0"),IF(J16<0," < "," ≥ "),FIXED(0,1), " ir ", TEXT(ROUND(E26,1),"0.0;–0.0"),IF(E26>=E27," ≥ "," < "), TEXT(ROUND(E27,1),"0.0;–0.0"), " arba ",TEXT(ROUND(E26,1),"0.0;–0.0"),IF(J16<0," < "," ≥ "),FIXED(0,1),) -> 0.4 ≥ 0,0 ir 0.0 < 0.8 arba 0.0 ≥ 0,0 | K17: =CONCATENATE(TEXT(ROUND(F25,1),"0.0;–0.0"),IF(K16<0," < "," ≥ "),FIXED(0,1), " ir ", TEXT(ROUND(F26,1),"0.0;–0.0"),IF(F26>=F27," ≥ "," < "), TEXT(ROUND(F27,1),"0.0;–0.0"), " arba ",TEXT(ROUND(F26,1),"0.0;–0.0"),IF(K16<0," < "," ≥ "),FIXED(0,1),) -> 0.4 ≥ 0,0 ir 0.0 < 0.8 arba 0.0 ≥ 0,0
C18: Taisyklė VSDF struktūriniam biudžetui | E18: =IF(OR(E15="Netiesa",E16="Tiesa"),"Tenkinama","Netenkinama") -> Tenkinama | F18: =IF(OR(F15="Netiesa",F16="Tiesa"),"Tenkinama","Netenkinama") -> Tenkinama | H18: Rule for SSIF structural budget | J18: =IF(OR(J14:J16),"Valid","Invalid") -> Invalid | K18: =IF(OR(K14:K16),"Valid","Invalid") -> Invalid
B19: T5 | C19: Nuo 2016 m. sausio 1 d. kiekvienas j-asis vietos valdžios sektoriui priskiriamas biudžetas, kurio asignavimai neviršija 0,3 procento praėjusių metų BVP to meto kainomis, turi būti planuojamas, tvirtinamas, keičiamas ir vykdomas taip, kad to biudžeto asignavimai neviršytų jo pajamų, išskyrus metus, kuriais pagal Vyriausybės arba jos įgaliotos institucijos viešai paskelbtą ekonominės raidos scenarijų, dėl kurio tvirtinimo kontrolės institucija paskelbė savo išvadą, numatomas neigiamas produkcijos atotrūkis nuo potencialo. Pastaruoju atveju asignavimai negali viršyti pajamų daugiau kaip 1,5 procento | D19: t > 2016 | E19: =IF(J19,"Tiesa","Netiesa") -> Tiesa | G19: R4 | H19: From 1 January 2016 each j-th budget attributable to local government sector, planned appropriations of which does not exceed 0.3 % of GDP in the preceding year at current prices, shall be planned, approved, amended and implemented in such a way that the appropriations of the budget would not exceed its revenue, with the exception of the year when a negative output gap is projected according to the economic development scenario which is made public by the Government or its authorised institution and in regard to which the monitoring authority published its conclusion. In the latter case, the appropriations may not exceed revenue by more than 1.5 % | I19: t > 2016 | J19: =IF(E24>2016,TRUE,FALSE) -> TRUE
D20: AP(t) ≥ 0 ir VIj(t)/VPj(t) ≤ 1 | E20: Savivaldybių biudžetų atitiktis fiskalinės drausmės taisyklėms bus vertinama 2020 m. birželį | F20: Savivaldybių biudžetų atitiktis fiskalinės drausmės taisyklėms bus vertinama 2020 m. birželį | I20: OG(t) ≥ 0 and TEj(t)/TRj(t) ≤ 1 | J20: Will be assessed in June 2020 | K20: Will be assessed in June 2020
D21: AP(t) < 0 ir VIj(t)/VPj(t) ≤ 1,015 | I21: OG(t) < 0 and TEj(t)/TRj(t) ≤ 1,015
C22: Taisyklė savivaldybių (j) asignavimams, kurie neviršija 0,3 proc. BVP | H22: Rule for local governments (j) appropriations of which does not exceed 0.3 % of GDP
C23: Šaltinis: KĮ 4 straipsnis | H23: Source: CL Article 4
D24: t = | E24: 2019 | I24: t = | J24: =E24 -> 2019
D25: AP(t) = | E25: ='2. Macro'!N20 -> 3.971988245 | F25: ='2. Macro'!N19 -> 3.496572107 | I25: OG(t) = | J25: =E25 -> 3.971988245 | K25: =F25 -> 3.496572107
D26: SBVSDF(t) = | E26: ='3. GGbudget'!H20 -> 0.1726905668 | F26: ='3. GGbudget'!L20 -> 0.2207075967 | I26: SBSSIF(t) = | J26: =E26 -> 0.1726905668 | K26: =F26 -> 0.2207075967
D27: SBVSDF(t–1) = | E27: ='3. GGbudget'!F20 -> 8.098679787 | F27: ='3. GGbudget'!J20 -> 8.23572891 | I27: SBSSIF(t–1) = | J27: =E27 -> 8.098679787 | K27: =F27 -> 8.23572891
D28: SBPSDF(t) = | E28: ='3. GGbudget'!H21 -> -0.1149357798 | F28: ='3. GGbudget'!L21 -> -0.09354205359 | I28: SBNHIF(t–1) = | J28: =E28 -> -0.1149357798 | K28: =F28 -> -0.09354205359
D29: Šaltiniai: | I29: Sources:
D30: Finansų ministerija | E30: FM | I30: Ministry of Finance | J30: MoF
D31: Fiskalinė institucija | E31: IFI | I31: Independent Fiscal Institution | J31: IFI
